bitfinex-derivatives/quotes_BTCF0:USTF0_20250928
["timestamp","ask_amount","ask_price","bid_price","bid_amount"]
[1759071223943,1.02422629,109890.0,109880.0,0.02341]
[1759071224143,1.70776783,109890.0,109880.0,0.001]
[1759071224344,2.06856783,109890.0,109880.0,0.001]
[1759071224740,2.11785284,109890.0,109880.0,0.001]
[1759071224943,2.06856783,109890.0,109880.0,0.001]
[1759071226345,2.21976783,109890.0,109880.0,0.001]
[1759071227146,2.21944783,109890.0,109880.0,0.001]
[1759071227644,2.26873284,109890.0,109880.0,0.001]
[1759071231653,1.42461284,109890.0,109880.0,0.001]
[1759071231843,2.26757284,109890.0,109880.0,0.001]
[1759071232040,2.23490845,109890.0,109880.0,0.001]
[1759071232444,2.23501008,109890.0,109880.0,0.001]
[1759071233046,2.26776597,109890.0,109880.0,0.001]
[1759071235357,1.42480597,109890.0,109880.0,0.001]
[1759071235657,2.26728597,109890.0,109880.0,0.001]
[1759071237556,2.23453008,109890.0,109880.0,0.001]
[1759071240259,1.39205008,109890.0,109880.0,0.001]
[1759071240559,2.23349008,109890.0,109880.0,0.001]
[1759071241258,2.26624227,109890.0,109880.0,0.001]
[1759071242358,2.26600227,109890.0,109880.0,0.001]
[1759071243963,1.42480227,109890.0,109880.0,0.001]
[1759071244164,2.26556227,109890.0,109880.0,0.001]
[1759071244765,1.42480227,109890.0,109880.0,0.001]
[1759071244964,2.21627726,109890.0,109880.0,0.001]
[1759071245352,1.37551726,109890.0,109880.0,0.001]
[1759071245561,2.26548227,109890.0,109880.0,0.001]
[1759071245761,1.58194073,109890.0,109880.0,0.001]
[1759071245961,2.26548227,109890.0,109880.0,0.001]
[1759071246667,1.75340227,109890.0,109880.0,0.1144574]
[1759071247263,0.86351726,109890.0,109880.0,0.1144574]
[1759071247565,1.75520227,109890.0,109880.0,0.1144574]
[1759071247969,1.75520227,109890.0,109880.0,0.0919674]
[1759071248159,1.75520227,109890.0,109880.0,0.001]
[1759071249668,0.91280227,109890.0,109880.0,0.0919674]
[1759071249969,1.75500227,109890.0,109880.0,0.0919674]
[1759071252059,1.75500227,109890.0,109880.0,0.001]
[1759071253171,0.91280227,109890.0,109880.0,0.001]
[1759071253370,1.75436227,109890.0,109880.0,0.02349]
[1759071253571,1.77540976,109890.0,109880.0,0.02349]
[1759071254475,1.77540976,109890.0,109880.0,0.001]
[1759071255776,1.74265757,109890.0,109880.0,0.001]
[1759071256169,2.10345757,109890.0,109880.0,0.001]
[1759071257674,1.26189757,109890.0,109880.0,0.001]
[1759071257875,2.10297757,109890.0,109880.0,0.001]
[1759071258075,1.26189757,109890.0,109880.0,0.001]
[1759071258273,2.10289757,109890.0,109880.0,0.001]
[1759071258476,2.08638462,109890.0,109880.0,0.001]
[1759071262378,2.10289757,109890.0,109880.0,0.001]
[1759071267076,2.25409757,109890.0,109880.0,0.001]
[1759071267377,2.10289757,109890.0,109880.0,0.001]
[1759071268380,2.10289757,109890.0,109860.0,0.45186247]
[1759071268381,0.03503,109870.0,109860.0,0.45186247]
[1759071268585,1.25901989,109870.0,109860.0,0.45186837]
[1759071269086,1.25901989,109870.0,109860.0,0.36088437]
[1759071269891,1.60079066,109870.0,109860.0,8.437e-05]
[1759071270182,1.63356164,109870.0,109860.0,0.00408437]
[1759071270681,1.63356164,109870.0,109860.0,0.01108437]
[1759071270883,1.63400164,109870.0,109860.0,0.01108437]
[1759071271483,1.63396164,109870.0,109860.0,0.01108437]
[1759071272488,1.70686954,109870.0,109860.0,0.01108437]
[1759071272781,0.86714954,109870.0,109860.0,0.01108437]
[1759071272982,1.70674954,109870.0,109860.0,0.01108437]
[1759071274090,1.70630954,109870.0,109860.0,0.01108437]
[1759071274683,0.86714954,109870.0,109860.0,0.01108437]
[1759071274886,1.70618954,109870.0,109860.0,0.01108437]
[1759071275091,0.86714954,109870.0,109860.0,0.01108437]
[1759071275389,0.83437856,109870.0,109860.0,0.03386437]
[1759071275588,0.83437856,109870.0,109860.0,0.52484827]
[1759071275589,0.96886223,109870.0,109860.0,0.52484827]
[1759071275788,0.471673,109870.0,109860.0,0.52484827]
[1759071276184,0.47172918,109870.0,109860.0,0.52484827]
[1759071276389,1.31080918,109870.0,109860.0,0.52484827]
[1759071276588,0.47172918,109870.0,109860.0,0.52484827]
[1759071276789,1.31076918,109870.0,109860.0,0.52484827]
[1759071277289,0.47172918,109870.0,109860.0,0.52484827]
[1759071277491,1.31068918,109870.0,109860.0,0.52484827]
[1759071278184,1.65251613,109870.0,109860.0,0.52484827]
[1759071279485,1.65251613,109870.0,109860.0,0.12484827]
[1759071280092,0.81355613,109870.0,109860.0,0.12484827]
[1759071280392,1.65203613,109870.0,109860.0,0.48564827]
[1759071281391,0.81355613,109870.0,109860.0,0.88564827]
[1759071281588,1.65203613,109870.0,109860.0,0.88564827]
[1759071281891,1.65203613,109870.0,109860.0,0.48564827]
[1759071282693,1.31020918,109870.0,109860.0,0.48564827]
[1759071282892,1.65203613,109870.0,109860.0,0.48564827]
[1759071283790,1.30988918,109870.0,109860.0,0.88564827]
[1759071285792,1.65171613,109870.0,109860.0,0.88564827]
[1759071291796,0.81355613,109870.0,109860.0,0.88564827]
[1759071292098,1.65051613,109870.0,109860.0,0.88564827]
[1759071295799,1.68328711,109870.0,109860.0,0.88564827]
[1759071297799,0.84632711,109870.0,109860.0,0.89834827]
[1759071297998,0.11644223,109870.0,109860.0,1.58200217]
[1759071298200,0.45826918,109870.0,109860.0,1.58200217]
[1759071298394,0.43669918,109870.0,109860.0,1.58200217]
[1759071300807,0.02196433,109870.0,109860.0,2.41908217]
[1759071301106,3e-08,109870.0,109860.0,2.41908217]
[1759071301302,0.37766695,109890.0,109880.0,0.02267]
[1759071301506,0.86302695,109890.0,109880.0,0.81626405]
[1759071302106,0.37766695,109890.0,109880.0,0.81626405]
[1759071302306,1.21454695,109890.0,109880.0,0.82369405]
[1759071302706,1.21454695,109890.0,109880.0,1.18449405]
[1759071303405,1.21450695,109890.0,109880.0,0.8426671]
[1759071303607,1.21450695,109890.0,109880.0,0.8436671]
[1759071304005,1.21434695,109890.0,109880.0,0.8436671]
[1759071304308,0.15893601,109910.0,109900.0,0.1263205]
[1759071304507,1.30451198,109910.0,109900.0,0.82894745]
[1759071305004,1.30451198,109910.0,109900.0,1.18974745]
[1759071305202,0.12616503,109910.0,109900.0,1.18974745]
[1759071305401,0.46799198,109910.0,109900.0,1.18974745]
[1759071305606,0.47299198,109910.0,109900.0,1.18974745]
[1759071306503,0.48650198,109910.0,109900.0,0.8352205]
[1759071306704,0.48650198,109910.0,109900.0,1.17704745]
[1759071306909,0.48650198,109910.0,109900.0,0.8352205]
[1759071307209,0.85128719,109910.0,109900.0,0.38347]
[1759071307405,1.25128719,109910.0,109900.0,0.3608]
[1759071307610,0.1271618,109900.0,109890.0,0.3608]
[1759071307806,0.1271688,109890.0,109880.0,0.38347]
[1759071308011,0.8108227,109890.0,109880.0,0.38347]
[1759071308311,0.8108227,109890.0,109880.0,0.3608]
[1759071309212,0.8108227,109890.0,109880.0,0.38347]
[1759071309708,0.8108227,109890.0,109880.0,0.4744371]
[1759071310815,0.8108227,109890.0,109880.0,0.4754371]
[1759071313116,0.83269971,109890.0,109880.0,0.4754371]
[1759071315314,0.83269971,109890.0,109880.0,0.38447]
[1759071321023,1.93532666,109890.0,109880.0,0.001]
[1759071321218,1.93532666,109890.0,109860.0,0.36088437]
[1759071321219,0.03465,109870.0,109860.0,0.02195437]
[1759071321520,0.39835396,109870.0,109860.0,0.38275437]
[1759071321711,1.23435396,109870.0,109860.0,0.47373807]
[1759071321912,1.57618091,109870.0,109860.0,0.47373807]
[1759071322116,0.89252701,109870.0,109860.0,0.47373807]
[1759071322321,1.57618091,109870.0,109860.0,0.47373807]
[1759071322519,1.57618091,109870.0,109860.0,0.48073807]
[1759071323325,0.74018091,109870.0,109860.0,0.48073807]
[1759071323624,1.57634091,109870.0,109860.0,0.48073807]
[1759071324016,0.39835396,109870.0,109860.0,0.48073807]
[1759071324217,1.23439396,109870.0,109860.0,0.48073807]
[1759071324724,1.23439396,109870.0,109860.0,0.48473807]
[1759071324725,1.57622091,109870.0,109860.0,0.48473807]
[1759071325032,1.6505187,109870.0,109860.0,0.48473807]
[1759071328732,0.8144787,109870.0,109860.0,0.47773807]
[1759071328930,1.6505987,109870.0,109860.0,0.48173807]
[1759071330243,1.6505987,109870.0,109860.0,0.47773807]
[1759071330443,1.6505987,109870.0,109860.0,0.47973807]
[1759071336252,1.3087926,109870.0,109860.0,0.47973807]
[1759071337048,0.1178748,109870.0,109860.0,1.22901587]
[1759071337243,0.07429779,109870.0,109860.0,1.22901587]
[1759071337452,0.36407,109880.0,109870.0,0.1128453]
[1759071337453,0.38577,109880.0,109870.0,0.1128453]
[1759071337647,0.40767709,109880.0,109870.0,0.8154931]
[1759071338053,0.05655709,109880.0,109870.0,0.8154931]
[1759071338352,0.05655709,109880.0,109870.0,0.4835553]
[1759071338646,0.04360709,109880.0,109870.0,1.2254031]
[1759071338851,0.04360709,109880.0,109870.0,1.2264031]
[1759071339255,0.04360709,109880.0,109870.0,0.8845553]
[1759071339653,0.04360709,109880.0,109870.0,0.4845553]
[1759071340249,0.38545489,109880.0,109870.0,0.4845553]
[1759071342554,0.39840489,109880.0,109870.0,0.4746453]
[1759071343456,0.05655709,109880.0,109870.0,0.4746453]
[1759071343650,0.39840489,109880.0,109870.0,0.4746453]
[1759071345257,0.05655709,109880.0,109870.0,0.4746453]
[1759071345457,0.02190709,109880.0,109870.0,1.2264031]
[1759071345657,0.7981778,109900.0,109890.0,0.1128288]
[1759071345858,0.8200801,109900.0,109890.0,0.4736288]
[1759071347657,0.8270801,109900.0,109890.0,0.4736288]
[1759071347858,0.4059601,109900.0,109890.0,0.4736288]
[1759071348052,1.2420001,109900.0,109890.0,0.4736288]
[1759071348961,0.4059601,109900.0,109890.0,0.4736288]
[1759071349160,1.2420001,109900.0,109890.0,0.4736288]
[1759071349960,0.0641123,109900.0,109890.0,0.4736288]
[1759071350259,1.2420001,109900.0,109890.0,0.4863288]
[1759071351262,1.2390001,109900.0,109890.0,0.4863288]
[1759071351962,0.4029601,109900.0,109890.0,0.8471288]
[1759071352256,1.2389601,109900.0,109890.0,0.8471288]
[1759071352451,1.2254501,109900.0,109890.0,0.8471288]
[1759071353058,0.3894501,109900.0,109890.0,0.8471288]
[1759071353263,1.2254101,109900.0,109890.0,0.8471288]
[1759071355059,0.3894501,109900.0,109890.0,0.8471288]
[1759071355262,0.3677501,109900.0,109890.0,1.2471288]
[1759071355565,0.3458478,109900.0,109890.0,1.2471288]
[1759071356661,0.3458478,109900.0,109890.0,2.0830488]
[1759071358768,0.3438478,109900.0,109890.0,2.0830488]
[1759071359068,0.3438478,109900.0,109890.0,1.2481288]
[1759071359361,0.3438478,109900.0,109890.0,2.0840088]
[1759071359566,0.3418478,109900.0,109890.0,2.0840088]
[1759071361464,1.06462773,109910.0,109900.0,0.1132906]
[1759071361764,1.42834467,109910.0,109900.0,0.4740906]
[1759071363969,1.43034467,109910.0,109900.0,0.4740906]
[1759071364169,1.43234467,109910.0,109900.0,0.4740906]
[1759071364370,0.03451,109900.0,109890.0,0.1132947]
[1759071364563,0.74007474,109900.0,109890.0,0.1132947]
[1759071364868,0.79822694,109900.0,109890.0,0.4740947]
[1759071365866,0.45637914,109900.0,109890.0,0.4740947]
[1759071366065,0.79822694,109900.0,109890.0,0.4740947]
[1759071367467,0.79822694,109900.0,109890.0,0.4750947]
[1759071368875,1.16160113,109900.0,109890.0,0.001]
[1759071369079,1.55517211,109900.0,109890.0,0.001]
[1759071371567,2.39097211,109900.0,109890.0,0.001]
[1759071372170,1.55517211,109900.0,109890.0,0.001]
[1759071372362,2.39097211,109900.0,109890.0,0.001]
[1759071372562,1.55517211,109900.0,109890.0,0.001]
[1759071372876,2.12112261,109900.0,109890.0,0.001]
[1759071373174,2.12112261,109900.0,109890.0,0.0919588]
[1759071373366,1.28532261,109900.0,109890.0,0.1146788]
[1759071373675,2.12112261,109900.0,109890.0,0.02372]
[1759071373970,2.09959622,109900.0,109890.0,0.02372]
[1759071375778,1.26379622,109900.0,109890.0,0.02372]
[1759071375984,2.09959622,109900.0,109890.0,0.02372]
[1759071378380,2.46039622,109900.0,109890.0,0.001]
[1759071379683,2.09959622,109900.0,109890.0,0.001]
[1759071380770,2.46039622,109900.0,109890.0,0.001]
[1759071380975,2.09959622,109900.0,109890.0,0.001]
[1759071381170,2.06682524,109900.0,109890.0,0.001]
[1759071381371,2.09959622,109900.0,109890.0,0.001]
[1759071381570,2.46039622,109900.0,109890.0,0.001]
[1759071381777,2.42762524,109900.0,109890.0,0.001]
[1759071381977,2.46039622,109900.0,109890.0,0.001]
[1759071382173,2.42762524,109900.0,109890.0,0.001]
[1759071382578,2.46039622,109900.0,109890.0,0.001]
[1759071386778,2.46043622,109900.0,109890.0,0.001]
[1759071386979,1.62459622,109900.0,109890.0,0.001]
[1759071387179,1.62459622,109900.0,109890.0,0.0919588]
[1759071387180,2.46039622,109900.0,109890.0,0.0919588]
[1759071388384,1.77670062,109900.0,109890.0,0.0919588]
[1759071388585,2.46039622,109900.0,109890.0,0.0919588]
[1759071388782,2.09959622,109900.0,109890.0,0.0919588]
[1759071388977,1.26379622,109900.0,109890.0,0.0919588]
[1759071389174,2.09959622,109900.0,109890.0,0.1141788]
[1759071390786,0.05637914,109900.0,109890.0,0.8749788]
[1759071391083,0.39822694,109900.0,109890.0,0.8749788]
[1759071391287,1.23402694,109900.0,109890.0,0.8749788]
[1759071391487,1.23402694,109900.0,109890.0,0.8829788]
[1759071392082,0.39822694,109900.0,109890.0,0.8829788]
[1759071392283,1.23402694,109900.0,109890.0,0.8829788]
[1759071393280,0.39822694,109900.0,109890.0,0.8829788]
[1759071393484,0.38506694,109900.0,109890.0,0.8829788]
[1759071393680,0.04321914,109900.0,109890.0,0.8829788]
[1759071393979,0.38506694,109900.0,109890.0,0.8829788]
[1759071397790,0.39870694,109900.0,109890.0,0.8829788]
[1759071398186,0.39846029,109900.0,109890.0,0.8829788]
[1759071398384,0.74006144,109900.0,109890.0,0.8829788]
[1759071399487,0.05685914,109900.0,109890.0,0.4829788]
[1759071399687,0.74006144,109900.0,109890.0,0.4749788]
[1759071413392,0.83101204,109900.0,109890.0,0.4749788]
[1759071413792,0.74006144,109900.0,109890.0,0.4749788]
[1759071415799,1.57562144,109900.0,109890.0,0.4749788]
[1759071420207,0.74006144,109900.0,109890.0,0.4749788]
[1759071420408,1.57554144,109900.0,109890.0,0.4749788]
[1759071423602,2.79015056,109900.0,109890.0,0.001]
[1759071423907,2.42935056,109900.0,109890.0,0.001]
[1759071424402,2.79015056,109900.0,109890.0,0.001]
[1759071424607,2.82292154,109900.0,109890.0,0.001]
[1759071425207,1.98744154,109900.0,109890.0,0.001]
[1759071425396,2.82288154,109900.0,109890.0,0.001]
[1759071427106,2.8010124,109900.0,109890.0,0.001]
[1759071427409,1.98750437,109900.0,109890.0,0.001]
[1759071427610,2.42937339,109900.0,109890.0,0.001]
[1759071428403,2.79017339,109900.0,109890.0,0.001]
[1759071431015,2.79013339,109900.0,109890.0,0.001]
[1759071433120,2.82290437,109900.0,109890.0,0.001]
[1759071437320,1.98750437,109900.0,109890.0,0.0919588]
[1759071437522,2.82290437,109900.0,109890.0,0.0919588]
[1759071437817,2.82286437,109900.0,109890.0,0.0919588]
[1759071438012,1.64590322,109900.0,109890.0,0.1140888]
[1759071438217,1.57548427,109900.0,109890.0,0.4748888]
[1759071438410,1.66643487,109900.0,109890.0,0.4748888]
[1759071438611,1.57548427,109900.0,109890.0,0.4748888]
[1759071439014,0.74012427,109900.0,109890.0,0.4748888]
[1759071439212,1.23388312,109900.0,109890.0,0.81648995]
[1759071439414,1.57548427,109900.0,109890.0,0.81648995]
[1759071439619,1.57548427,109900.0,109890.0,0.4748888]
[1759071442224,0.74012427,109900.0,109890.0,0.4748888]
[1759071442414,1.57544427,109900.0,109890.0,0.4748888]
[1759071447026,1.57544427,109900.0,109890.0,0.1140888]
[1759071447325,1.57544427,109900.0,109890.0,0.4748888]
[1759071447623,0.02193197,109900.0,109890.0,0.82448995]
[1759071448225,0.36353312,109900.0,109890.0,0.82448995]
[1759071448826,0.38670312,109900.0,109890.0,0.82448995]
[1759071451127,0.36353312,109900.0,109890.0,0.82448995]
[1759071452028,0.38670312,109900.0,109890.0,0.82448995]
[1759071453431,0.36353312,109900.0,109890.0,1.65964995]
[1759071453829,0.02193197,109900.0,109890.0,2.05964995]
[1759071454026,0.10346503,109910.0,109900.0,0.1224606]
[1759071454231,0.36352063,109910.0,109900.0,0.82486175]
[1759071454427,0.38669063,109910.0,109900.0,0.82486175]
[1759071455319,0.46052504,109910.0,109900.0,0.82486175]
[1759071455520,0.46052504,109910.0,109900.0,1.65998175]
[1759071455718,0.46452504,109910.0,109900.0,1.67388398]
[1759071456125,0.46452504,109910.0,109900.0,0.83876398]
[1759071456428,0.46452504,109910.0,109900.0,1.67384398]
[1759071456830,0.46452504,109910.0,109900.0,1.65994175]
[1759071457017,0.12292389,109910.0,109900.0,1.65994175]
[1759071457221,0.46452504,109910.0,109900.0,1.65994175]
[1759071457626,0.48115095,109910.0,109900.0,0.82486175]
[1759071458018,0.48115095,109910.0,109900.0,1.65990175]
[1759071458327,0.45923147,109910.0,109900.0,1.65990175]
[1759071458524,0.45923147,109910.0,109900.0,0.82486175]
[1759071458733,0.4645045,109910.0,109900.0,1.65990175]
[1759071459430,0.4645045,109910.0,109900.0,2.0015029]
[1759071459736,0.004,109910.0,109900.0,2.4015029]
[1759071460232,0.004,109910.0,109900.0,2.05972674]
[1759071460432,0.004,109910.0,109900.0,1.65972674]
[1759071461129,0.004,109910.0,109900.0,2.05968674]
[1759071461930,0.004,109910.0,109900.0,0.82468674]
[1759071462232,0.004,109910.0,109900.0,1.65968674]
[1759071462432,0.002,109910.0,109900.0,1.65968674]
[1759071463032,0.002,109910.0,109900.0,0.82468674]
[1759071463331,0.002,109910.0,109900.0,1.65964674]
[1759071463832,0.002,109910.0,109900.0,0.4832606]
[1759071464026,0.002,109910.0,109900.0,0.82468674]
[1759071464428,0.45036081,109920.0,109910.0,0.1125423]
[1759071464632,0.4722674,109920.0,109910.0,0.4733423]
[1759071466233,0.4752674,109920.0,109910.0,0.4733423]
[1759071466834,0.13384126,109920.0,109910.0,0.4733423]
[1759071467036,0.4752674,109920.0,109910.0,0.4733423]
[1759071467234,0.4752674,109920.0,109910.0,1.3082223]
[1759071469335,0.4752674,109920.0,109910.0,1.32195771]
[1759071470931,0.4772674,109920.0,109910.0,1.32195771]
[1759071471138,0.4742674,109920.0,109910.0,1.32195771]
[1759071472041,0.4772674,109920.0,109910.0,1.32195771]
[1759071472535,0.4772674,109920.0,109910.0,0.48707771]
[1759071472741,0.4772674,109920.0,109910.0,1.32183771]
[1759071472938,0.13584126,109920.0,109910.0,1.32183771]
[1759071473143,0.4772674,109920.0,109910.0,1.32183771]
[1759071474241,0.4772674,109920.0,109910.0,1.3081023]
[1759071474547,0.4772674,109920.0,109910.0,0.4733423]
[1759071474842,0.4772674,109920.0,109910.0,1.3081023]
[1759071475640,0.4772674,109920.0,109910.0,1.3080623]
[1759071477746,0.4772674,109920.0,109910.0,0.4733423]
[1759071477930,0.4772674,109920.0,109910.0,1.3080223]
[1759071478846,0.4742674,109920.0,109910.0,1.3080223]
[1759071479139,0.4742674,109920.0,109910.0,0.4733423]
[1759071479648,0.4742674,109920.0,109910.0,1.3080223]
[1759071481644,0.4772674,109920.0,109910.0,1.3080223]
[1759071485643,0.36833273,109920.0,109910.0,1.3080223]
[1759071485852,0.08215599,109940.0,109930.0,0.1087358]
[1759071486150,0.0001,109940.0,109930.0,2.00632194]
[1759071487047,0.34142614,109950.0,109940.0,0.1087275]
[1759071487240,0.3933126,109960.0,109950.0,0.1087192]
[1759071487437,0.3933126,109960.0,109950.0,1.3040392]
[1759071488051,0.3933126,109960.0,109950.0,0.4695192]
[1759071488249,0.7933126,109960.0,109950.0,0.1087192]
[1759071488445,1.16750972,109960.0,109950.0,0.0909092]
[1759071488948,2.01202972,109960.0,109940.0,0.451712]
[1759071489144,0.71832228,109950.0,109940.0,0.469522]
[1759071489652,0.79179529,109950.0,109940.0,0.469522]
[1759071489946,0.79179529,109950.0,109940.0,0.451712]
[1759071490251,0.79179529,109950.0,109940.0,0.469522]
[1759071491256,0.45036915,109950.0,109940.0,0.469522]
[1759071492541,1.21286137,109950.0,109940.0,0.469522]
[1759071493048,1.19179529,109950.0,109940.0,0.469522]
[1759071493249,1.19879529,109950.0,109940.0,0.469522]
[1759071495159,2.03319529,109950.0,109940.0,0.469522]
[1759071495856,1.19879529,109950.0,109940.0,0.469522]
[1759071496157,2.03315529,109950.0,109940.0,0.469522]
[1759071496957,1.69172915,109950.0,109940.0,0.469522]
[1759071497757,1.71349568,109950.0,109940.0,0.469522]
[1759071498959,1.71345568,109950.0,109940.0,0.469522]
[1759071499260,2.05488182,109950.0,109940.0,0.469522]
[1759071499561,2.05484182,109950.0,109940.0,0.469522]
[1759071499858,1.7342636,109950.0,109940.0,0.3608]
[1759071500059,0.0351,109940.0,109930.0,0.46953]
[1759071500260,0.39829267,109940.0,109930.0,0.46953]
[1759071501453,0.39237799,109940.0,109930.0,0.48374799]
[1759071501654,0.39637799,109940.0,109930.0,0.48374799]
[1759071502354,0.39237799,109940.0,109930.0,0.48374799]
[1759071502552,0.39337799,109940.0,109930.0,0.48374799]
[1759071504159,0.05195185,109940.0,109930.0,0.48374799]
[1759071504362,0.39337799,109940.0,109930.0,0.48374799]
[1759071504566,0.05195185,109940.0,109930.0,0.82517413]
[1759071504750,0.05195185,109940.0,109930.0,0.48374799]
[1759071505261,0.39337799,109940.0,109930.0,0.48374799]
[1759071505661,0.39337799,109940.0,109930.0,0.86953]
[1759071505864,0.39337799,109940.0,109930.0,0.8836438]
[1759071510769,0.39337799,109940.0,109930.0,0.4836438]
[1759071511071,0.39237799,109940.0,109930.0,0.1258438]
[1759071511763,0.05095185,109940.0,109930.0,0.1258438]
[1759071512070,0.39337799,109940.0,109930.0,0.1228438]
[1759071513073,0.48429549,109940.0,109930.0,0.1228438]
[1759071514974,0.88429549,109940.0,109930.0,0.0141138]
[1759071515266,0.91706647,109940.0,109930.0,0.0141138]
[1759071516672,0.0351,109930.0,109920.0,0.4517338]
[1759071516972,0.39829267,109930.0,109920.0,0.4517338]
[1759071517362,0.39829267,109930.0,109920.0,0.3608]
[1759071517970,0.39829267,109930.0,109920.0,0.473644]
[1759071518270,0.39829267,109930.0,109920.0,0.476644]
[1759071518470,1.23237267,109930.0,109920.0,0.476644]
[1759071518874,1.23237267,109930.0,109920.0,0.02491]
[1759071519267,1.23237267,109930.0,109920.0,0.003]
[1759071520179,1.23237267,109930.0,109920.0,0.02491]
[1759071520472,1.57392485,109930.0,109920.0,0.02491]
[1759071526974,1.57392485,109930.0,109920.0,0.115844]
[1759071528478,0.73984485,109930.0,109920.0,0.115844]
[1759071528680,1.57388485,109930.0,109920.0,0.115844]
[1759071530578,1.66481065,109930.0,109920.0,0.115844]
[1759071531680,1.66481065,109930.0,109920.0,0.003]
[1759071532378,1.66481065,109930.0,109920.0,0.02474]
[1759071536588,1.68615096,109930.0,109920.0,0.003]
[1759071540982,2.44695096,109930.0,109920.0,0.003]
[1759071541182,1.64568194,109930.0,109920.0,0.003]
[1759071541579,2.47960194,109930.0,109920.0,0.003]
[1759071543594,1.64568194,109930.0,109920.0,0.003]
[1759071543794,2.47956194,109930.0,109920.0,0.003]
[1759071547594,2.47952194,109930.0,109920.0,0.003]
[1759071547790,2.08595096,109930.0,109920.0,0.003]
[1759071548399,1.25211096,109930.0,109920.0,0.003]
[1759071548901,2.08595096,109930.0,109920.0,0.003]
[1759071549094,1.25211096,109930.0,109920.0,0.003]
[1759071549297,0.85211096,109930.0,109920.0,0.02474]
[1759071549598,1.68595096,109930.0,109920.0,0.02474]
[1759071550203,1.68595096,109930.0,109920.0,0.115674]
[1759071550204,0.07820684,109930.0,109920.0,0.115674]
[1759071550410,1.253536,109930.0,109920.0,1.21796316]
[1759071550909,0.38983403,109930.0,109920.0,1.23056316]
[1759071551400,1.22363403,109930.0,109920.0,1.23056316]
[1759071552007,0.38983403,109930.0,109920.0,1.23056316]
[1759071552208,0.88214487,109930.0,109920.0,1.23056316]
[1759071552506,1.22363403,109930.0,109920.0,1.23056316]
[1759071554495,1.22363403,109930.0,109920.0,0.889074]
[1759071554699,1.22363403,109930.0,109920.0,1.23056316]
[1759071556408,1.31455983,109930.0,109920.0,1.23056316]
[1759071557304,0.04310684,109930.0,109920.0,1.57205232]
[1759071557511,0.02176653,109930.0,109920.0,1.57205232]
[1759071557700,1.11517686,109940.0,109930.0,0.1264958]
[1759071557904,1.13698908,109940.0,109930.0,0.82878496]
[1759071558307,0.79549992,109940.0,109930.0,0.82878496]
[1759071558613,1.13698908,109940.0,109930.0,0.82878496]
[1759071558915,1.04707138,109940.0,109930.0,0.82878496]
[1759071559611,1.05975138,109940.0,109930.0,0.82878496]
[1759071559812,1.40124054,109940.0,109930.0,0.82878496]
[1759071560013,0.05782222,109940.0,109930.0,1.22878496]
[1759071560213,0.74080054,109940.0,109930.0,1.22878496]
[1759071560814,0.39931138,109940.0,109930.0,1.22878496]
[1759071562414,0.74080054,109940.0,109930.0,1.22878496]
[1759071563417,0.05782222,109940.0,109930.0,1.22878496]
[1759071563613,0.39931138,109940.0,109930.0,1.22878496]
[1759071564216,0.74080054,109940.0,109930.0,1.22878496]
[1759071566922,0.74080054,109940.0,109930.0,0.8872958]
[1759071567218,0.74080054,109940.0,109930.0,1.22878496]
[1759071569314,0.74080054,109940.0,109930.0,2.06226496]
[1759071570923,0.74080054,109940.0,109930.0,1.7207758]
[1759071571123,0.74080054,109940.0,109930.0,2.06226496]
[1759071571624,0.74080054,109940.0,109930.0,1.7207758]
[1759071571825,0.74080054,109940.0,109930.0,2.06226496]
[1759071573824,0.72812054,109940.0,109930.0,2.06226496]
[1759071574030,0.38663138,109940.0,109930.0,2.06226496]
[1759071574530,0.04514222,109940.0,109930.0,2.06226496]
[1759071574730,0.38663138,109940.0,109930.0,2.06226496]
[1759071575627,0.04514222,109940.0,109930.0,2.06226496]
[1759071575828,0.38663138,109940.0,109930.0,2.06226496]
[1759071579329,0.74080054,109940.0,109930.0,0.8743958]
[1759071579627,0.74080054,109940.0,109930.0,1.3077158]
[1759071580224,0.39921394,109940.0,109930.0,0.4743958]
[1759071580430,0.42063824,109940.0,109930.0,0.4743958]
[1759071580625,0.39921394,109940.0,109930.0,0.4517258]
[1759071581529,0.49013144,109940.0,109930.0,0.3608]
[1759071581734,0.1259358,109930.0,109920.0,0.4744017]
[1759071581924,1.32237974,109930.0,109920.0,0.4744017]
[1759071582734,1.72237974,109930.0,109920.0,0.4744017]
[1759071583636,1.72237974,109930.0,109920.0,0.4764017]
[1759071583838,2.06377146,109930.0,109920.0,0.002]
[1759071584637,2.06377146,109930.0,109920.0,0.003]
[1759071585434,2.42457146,109930.0,109920.0,0.003]
[1759071586834,2.42453146,109930.0,109920.0,0.003]
[1759071587832,2.42457146,109930.0,109920.0,0.003]
[1759071590633,1.59133146,109930.0,109920.0,0.003]
[1759071590828,2.42457146,109930.0,109920.0,0.003]
[1759071591542,0.75901394,109930.0,109920.0,0.116854]
[1759071591742,1.59225394,109930.0,109920.0,0.116854]
[1759071591943,0.75901394,109930.0,109920.0,0.116854]
[1759071592130,1.59221394,109930.0,109920.0,0.116854]
[1759071592335,0.75901394,109930.0,109920.0,0.116854]
[1759071592739,1.23141394,109930.0,109920.0,0.116854]
[1759071592938,0.39821394,109930.0,109920.0,0.116854]
[1759071593139,1.23141394,109930.0,109920.0,0.116854]
[1759071596453,0.39821394,109930.0,109920.0,0.116854]
[1759071596747,1.23145394,109930.0,109920.0,0.116854]
[1759071597746,0.39821394,109930.0,109920.0,0.116854]
[1759071597948,1.23141394,109930.0,109920.0,0.116854]
[1759071598846,0.39821394,109930.0,109920.0,0.116854]
[1759071599045,1.23141394,109930.0,109920.0,0.116854]
[1759071600446,0.39821394,109930.0,109920.0,0.116854]
[1759071600650,1.23137394,109930.0,109920.0,0.116854]
[1759071600848,0.39821394,109930.0,109920.0,0.116854]
[1759071601150,0.39821394,109930.0,109920.0,0.516854]
[1759071601151,1.23137394,109930.0,109920.0,0.516854]
[1759071601851,0.88998222,109930.0,109920.0,0.516854]
[1759071602041,1.23137394,109930.0,109920.0,0.516854]
[1759071602948,0.39821394,109930.0,109920.0,0.516854]
[1759071603152,1.23137394,109930.0,109920.0,0.516854]
[1759071603350,1.23137394,109930.0,109920.0,0.529754]
[1759071603650,0.88994222,109930.0,109920.0,0.529754]
[1759071603850,1.23133394,109930.0,109920.0,0.529754]
[1759071604044,1.23133394,109930.0,109920.0,0.516854]
[1759071605944,0.39821394,109930.0,109920.0,0.516854]
[1759071606143,0.39821394,109930.0,109920.0,0.890554]
[1759071606340,1.23129394,109930.0,109920.0,0.890554]
[1759071606753,0.39821394,109930.0,109920.0,0.890554]
[1759071607256,0.38553394,109930.0,109920.0,0.890554]
[1759071611457,0.04414222,109930.0,109920.0,1.251354]